Cogmind - Beta 16 @@@ ROGUE MODE // 2025.10.24 @ 20:39:11 Player: Countzero Result: Destroyed by S-10 Pest with Light Assault Rifle Performance ------------- Evolutions (0) 0 Regions Visited (1) 200 Robots Destroyed (14) 70 Value Destroyed (254) 254 Prototype IDs (2) 40 Alien Tech Used (0) 0 Bonus (0) 0 TOTAL SCORE: 564 Bonus ------- None Cogmind --------- Core Integrity 0/250 Matter 300/300 Energy 124/125 System Corruption 0% Temperature Cool (80) Movement Rolling (95) Ox1 Location -10/Materials Parts ------- > --- POWER (1) -------- Light Ion Engine > --- PROPULSION (2) --- Wheel > --- UTILITY (2) ------ Small Storage Unit Visual Processing Unit > --- WEAPON (2) ------- Beam Cannon Light Assault Rifle > --- INVENTORY (8) ---- Large Battery (200) Medium Matter Pod (38) Sensor Array Core Shielding Light EM Pulse Cannon Light EM Pulse Cannon Peak State ------------ > --- POWER ------------ Ion Engine > --- PROPULSION ------- Light Treads Light Treads > --- UTILITY ---------- Small Storage Unit Visual Processing Unit > --- WEAPON ----------- Medium Laser Medium Laser > --- INVENTORY -------- Light Ion Engine Wheel Compact Wheel Medium Matter Pod Light Assault Rifle [Rating: 8] Favorites ----------- Power Ion Engine Engine Ion Engine Propulsion Light Treads Treads Light Treads Wheel Wheel Utility Small Storage Unit Storage Small Storage Unit Processor Visual Processing Unit Weapon Medium Laser Energy Gun Medium Laser Energy Cannon Beam Cannon Ballistic Gun Light Assault Rifle Build | -11 -10 ------- Run | Yrd Mat Slots Evolved . | . . Power . | . . Propulsion . | . . Utility . | . . Weapon . | . . Parts Attached 13 | 6 7 Power 3 | 1 2 Engine 3 | 1 2 Core . | . . Reactor . | . . Propulsion 4 | 2 2 Treads 2 | 2 . Leg . | . . Wheel 2 | . 2 Hover . | . . Flight . | . . Utility 2 | 1 1 Device . | . . Storage 1 | 1 . Processor 1 | . 1 Hackware . | . . Protection . | . . Artifact . | . . Weapon 4 | 2 2 Energy Gun 2 | 2 . Energy Cannon 1 | . 1 Ballistic Gun 1 | . 1 Ballistic Cannon . | . . Launcher . | . . Special Weapon . | . . Impact Weapon . | . . Slashing Weapon . | . . Piercing Weapon . | . . Special Melee Weapon . | . . Unidentified Prototypes . | . . Parts Lost 7 | . 7 Power 2 | . 2 Propulsion 3 | . 3 Utility . | . . Weapon 2 | . 2 Highest Loss Streak 5 | . 5 To Critical Strikes 1 | . 1 Average Backups 4 | 4 4 Power . | 1 . Propulsion 1 | 2 1 Utility 1 | . 1 Weapon 1 | . 1 Tool/Special . | . . Unused Backups 6 | . 6 Power . | . . Propulsion . | . . Utility 4 | . 4 Weapon 2 | . 2 Tool/Special . | . . Average Slot Usage (%) 88 | . 88 Engine 12 | . 12 Treads 13 | . 13 Wheel 12 | . 12 Storage 14 | . 14 Processor 9 | . 9 Energy Gun 13 | . 13 Energy Cannon 4 | . 4 Ballistic Gun 6 | . 6 Peak Build Rating 8 | 6 8 Average Rating 6 | 5 6 On Entrance 3 | . 6 Avg Prop Armor Cover (%) . | . . Naked Turns . | . . Heaviest Build 14 | 14 14 Greatest Support 40 | 40 40 Greatest Overweight (x) 2 | 2 1 Average Overweight (x) . | . . Largest Inventory Capacity 8 | 8 8 Average Capacity 7 | 7 8 Most Carried 8 | 8 6 Average Carried 4 | 4 4 Final Capacity 8 | 8 8 Final Carried 6 | 4 6 Class Distribution -------------------- 100% | Mutant Dominant Class ---------------- Mutant | -10/Materials Resources | -11 -10 ----------- Run | Yrd Mat Matter Collected 350 | 155 195 Remotely . | . . Salvage Created 337 | . 337 Parts 21 | . 21 Haulers Intercepted . | . . Recyclers Shooed 1 | . 1 Parts Field Recycled . | . . Retrieved Matter . | . . Parts Self-Destructed . | . . Prevented . | . . Parts Restored . | . . Kills | -11 -10 ------- Run | Yrd Mat Combat Hostiles Destroyed 9 | . 9 Guns 4 | . 4 Cannons 3 | . 3 Classes Destroyed 5 | . 5 Worker 3 | . 3 Recycler 1 | . 1 Watcher 1 | . 1 Swarmer 5 | . 5 Grunt 4 | . 4 Best Kill Streak 6 | . 6 Combat Bots Only 4 | . 4 Max Kills in Single Turn 2 | . 2 Gunslinging . | . . Exploded . | . . Melee . | . . Uniques/NPCs Destroyed . | . . Combat | -11 -10 -------- Run | Yrd Mat Hostile Shots Fired 76 | . 76 Missed 14 | . 14 Hits 62 | . 62 Projectile 62 | . 62 Critical Strikes 1 | . 1 Damage Taken 851 | . 851 Core 258 | . 258 Absorbed by Shields . | . . Core Remaining (%) 100 | 100 . Volleys Fired 33 | . 33 Largest 2 | . 2 Hottest 100 | . 100 Shots Fired 65 | . 65 Gun 49 | . 49 Cannon 16 | . 16 Launcher . | . . Special . | . . Kinetic 17 | . 17 Thermal 48 | . 48 Explosive . | . . Electromagnetic . | . . Robot Hit Streak 4 | . 4 Robot Miss Streak 4 | . 4 Penetration Max . | . . Secondary Targets . | . . Shots Hit Robots 33 | . 33 Core Hits 16 | . 16 Critical Kills . | . . Critical Parts Destroyed . | . . Critical Strikes 4 | . 4 Burn 4 | . 4 Melee Attacks . | . . Impact . | . . Slashing . | . . Piercing . | . . Sneak Attacks . | . . Combat Hostiles . | . . Follow-up Attacks . | . . Damage Inflicted 578 | . 578 Guns 317 | . 317 Cannons 140 | . 140 Explosions 121 | . 121 Melee . | . . Ramming . | . . Kinetic 56 | . 56 Thermal 522 | . 522 Explosive . | . . Electromagnetic . | . . Impact . | . . Slashing . | . . Piercing . | . . Highest Corruption . | . . Average Corruption . | . . Corruption Purged . | . . Corruption Blocked . | . . Overload Shots . | . . Overflow Damage 88 | . 88 Projectiles 4 | . 4 Explosions 84 | . 84 Melee . | . . Knockbacks . | . . Impact . | . . Kinetic . | . . Secondary . | . . Self-Inflicted Damage 203 | . 203 Shots 2 | . 2 Rammed . | . . Targets Rammed . | . . Kicked . | . . Crushed . | . . Highest Temperature 583 | . 583 Average Temperature 187 | . 187 Received Heat Transfer 213 | . 213 Effects 9 | . 9 Energy Bleed 2 | . 2 Interference 1 | . 1 Damage (minor) 2 | . 2 Damage (major) 4 | . 4 Siege Activations . | . . Martial Activations . | . . Shielding Activations . | . . Robots Disrupted . | . . Combat Hostiles . | . . Robots Corrupted . | . . Combat Hostiles . | . . Parts Fried . | . . Impact Corruptions . | . . Robots Melted 2 | . 2 Combat Hostiles 2 | . 2 Parts Melted 3 | . 3 Heat Transferred 1469 | . 1469 Parts Sabotaged . | . . Parts Stolen . | . . Parts Stripped . | . . Power Chain Reactions . | . . Alert | -11 -10 ------- Run | Yrd Mat Maximum Alert Level . | . . Low Security (%) 100 | 100 100 Level 1 . | . . Level 2 . | . . Level 3 . | . . Level 4 . | . . Level 5 . | . . High Security . | . . Max Security . | . . Peak Influence 116 | . 116 Initial . | . . Average 29 | . 43 Influence Increases 332 | . 332 Destroy 0b10 Robot/C 180 | . 180 Destroy 0b10 Robot/NC 25 | . 25 Destroy Leader 32 | . 32 Successful Hack 20 | . 20 Disable Machine 45 | . 45 Destroy Structure 30 | . 30 Influence Decreases 216 | . 216 Time Decay 146 | . 146 Lost Part 70 | . 70 Squads Dispatched . | . . Investigation . | . . Extermination . | . . Reinforcement . | . . Assault . | . . Garrison . | . . Intercept . | . . Searches Triggered . | . . Construction Impeded . | . . Haulers Reinforced . | . . Active Scanning Responses . | . . Cargo Convoy Interrupts . | . . Stealth | -11 -10 --------- Run | Yrd Mat Distress Signals 1 | . 1 Communications Jammed . | . . Distress Signals . | . . Times Spotted 13 | . 13 Peak Tracking Total 5 | . 5 Tactical Retreats . | . . Traps | -11 -10 ------- Run | Yrd Mat Traps Triggered . | . . Indirectly . | . . Trap Hack Attempts . | . . Triggered . | . . Disarmed . | . . Reprogrammed . | . . Reused . | . . Traps Extracted . | . . Installed . | . . Triggered . | . . Machines | -11 -10 ---------- Run | Yrd Mat Machines Disabled 4 | . 4 Max in Single Turn 3 | . 3 Machines Repaired . | . . Machines Dismantled . | . . Machines Sabotaged . | . . Overloaded Fab Kills . | . . Hacking | -11 -10 --------- Run | Yrd Mat Machines Accessed 3 | . 3 Terminals 2 | . 2 Fabricators . | . . Repair Stations . | . . Recycling Units 1 | . 1 Scanalyzers . | . . Garrison Access . | . . Total Hacks 10 | . 10 Successful 7 | . 7 Failed 3 | . 3 Catastrophic . | . . Database Lockouts . | . . Manual . | . . Terminals 9 | . 9 Fabricators . | . . Repair Stations . | . . Recycling Units 1 | . 1 Scanalyzers . | . . Garrison Access . | . . Terminal Hacks 6 | . 6 Record 1 | . 1 Prototype ID Bank 1 | . 1 Emergency Access Points 1 | . 1 Hauler Manifests 1 | . 1 Zone Layout 2 | . 2 Fabricator Hacks . | . . Repair Station Hacks . | . . Recycling Unit Hacks 1 | . 1 Report Inventory 1 | . 1 Scanalyzer . | . . Garrison Access Hacks . | . . Unauthorized Hacks . | . . Terminals . | . . Fabricators . | . . Repair Stations . | . . Recycling Units . | . . Scanalyzers . | . . Garrison Access . | . . Data Cores Recovered . | . . Used . | . . Hacking Detections 1 | . 1 Full Trace Events . | . . Feedback Events . | . . Feedback Blocked . | . . Robot Schematics Acquired . | . . Robots Built . | . . Authchips . | . . Time . | . . Total Robot Build Rating . | . . Part Schematics Acquired . | . . Parts Built . | . . Authchips . | . . Time . | . . Total Part Build Rating . | . . Part Studies Acquired . | . . Parts Repaired . | . . Time . | . . Parts Recycled . | . . Recycled Matter . | . . Retrieved Matter . | . . Retrieved Components . | . . Parts Scanalyzed . | . . Part Schematics Acquired . | . . Parts Damaged . | . . Bothacking | -11 -10 ------------ Run | Yrd Mat Used RIF Installer . | . . Robots Hacked . | . . Non-combat . | . . Combat . | . . Robot Hacks Applied . | . . Relay Couplers Released . | . . Fabnet Peak Effective % . | . . Robots Rewired . | . . Allies Hacked . | . . Hacks Repelled . | . . Allies | -11 -10 -------- Run | Yrd Mat Total Allies . | . . Largest Group . | . . Highest-Rated Group . | . . Highest-Rated Ally . | . . Total Orders . | . . Ally Attacks . | . . Total Damage . | . . Kills . | . . Allies Corrupted . | . . Allies Melted . | . . Intel | -11 -10 ------- Run | Yrd Mat Active Infowar (turns) 280 | . 280 Optics 280 | . 280 Robot Analysis Total . | . . Derelict Logs Recovered . | . . Drone Launches . | . . Drone Recoveries . | . . Exploration | -11 -10 ------------- Run | Yrd Mat Turns Passed 648 | 203 445 Spaces Moved 343 | 52 291 Core 25 | 25 . Treads 128 | 27 101 Legs . | . . Wheels 190 | . 190 Hover . | . . Flight . | . . Fastest Speed 50 | 50 90 Average Speed 116 | 126 115 Slowest Speed 160 | 160 160 Overloaded Moves . | . . Propulsion Burnouts . | . . Robots Hopped . | . . Potential Cave-ins . | . . Cave-ins Triggered . | . . Exploration Rate (%) 31 | 4 59 Regions Visited 1 Branch Regions . Pre-discovered Areas . | . . Known Exits Taken . | . . Unknown Exits Taken 1 | 1 . Scrap Searched . | . . Spaces Dug . | . . Terrain Destroyed 32 | . 32 Melee . | . . Projectile . | . . AOE 32 | . 32 Terrain Rammed . | . . Walls Destroyed . | . . Machines Disabled . | . . Actions | -11 -10 --------- Run | Yrd Mat Total 528 | 188 340 Wait 123 | 123 . Move 342 | 51 291 Hop . | . . Pick Up 17 | 8 9 Fast Attach 2 | 2 . Attach 11 | 4 7 Detach . | . . Swap . | . . Drop . | . . Fire 33 | . 33 Melee . | . . Ram . | . . Kick . | . . Crush . | . . Escape Stasis . | . . Rewire . | . . Trap . | . . Miscellaneous . | . . Route ------- -11/Scrapyard -10/Materials (discovered 1 exit: [*Min]) History --------- Turn | Location | Event 4 | -11/Scrapyard | Discovered new exit (range 15) 204 | -11/Scrapyard | Entered Materials 300 | -10/Materials | Build established: Mutant 419 | -10/Materials | Core integrity fell below 50% 449 | -10/Materials | Lost 5 parts (1p2n2w) 552 | -10/Materials | Discovered new exit (range 12) 579 | -10/Materials | Core integrity fell below 20% 649 | -10/Materials | Destroyed by S-10 Pest with Light Assault Rifle Last Messages --------------- 00556_ Acquired 23 matter. 00557_ W-16 Scout sends out distress signal. 00560_ Machine disabled. 00575_ S-10 Pest destroyed. 00576_ Acquired 14 matter. 00579_ Critical hit (Destroy). 00579_ Lgt. Ion Engine destroyed. 00582_ Com. Wheel destroyed. 00584_ S-10 Pest destroyed. 00585_ K-01 Serf collects debris. 00589_ Destroyed Flight Unit. 00589_ S-10 Pest destroyed. 00590_ Acquired 19 matter. 00592_ K-01 Serf collects debris. 00611_ R-06 Scavenger collects Lgt. Ion Engine. 00614_ K-01 Serf collects debris. 00615_ Acquired Core Shielding. 00642_ S-10 Pest destroyed. 00645_ K-01 Serf collects debris. 00649_ Acquired 15 matter. Map ----- +----------------------------------------------------+ | | | | | ?????????????????????????????????????????????????? | | ?????????????????????????????????????????????????? | | ?????????????????????????????????????????????????? | | ?????????????????????????????????????????????????? | | ?????????????????????????????????????????????????? | | ?????????????????????????????????????????????????? | | ?????????????????????????????????????????????????? | | ?????????????????????????????????????????????????? | | ?????????????????????????????????????????????????? | | ?????????????????????????????????????????????????? | | ?????????????????????????????????????????????????? | | ?????????????????????????????????????????????????? | | ?????????????????????????????????????????????????? | | ????????????????????????#####????????????????????? | | ???????????????????????? #????????????????????? | | ?????????????????? ????? #????????????????????? | | ?????????????????? ???? #????????????????????? | | ??????????#########+##### #????????????????????? | | ??????????# # #????????????????????? | | ??????????# """ """ """ # #????????????????????? | | ??????????# """ """ """ # +????????????????????? | | ??????????# """ """ """ # k#???#####????????????? | | ??????????# s #[%=#???# ????????????? | | ??????????# /@* #???# ""???????????? | | ??????????######+#########+##???# ""#??????????? | | ???????????????# #??????????????# T"#??????????? | | ???????????????# #??????????????# ""#??????????? | | ???????????????# #??????????????# ""#??????????? | | ???????????????# #####??????????# ######+##??? | | ???????????????# +??????????# ## ??? | | ???????????????# ###??????????# ## """ ?? | | ################ #????????????# ## """"" ? | | + ## #????????????#[*! ## """"" # | | ###### ## ##???#########[ ## """"" # | | ?????# """ # ##### ##+##### ! """ # | | ###### """"" # =% ###= # | | # """"" + " < * +! ! # | | # """"" # ####+######## | | # """ # ##### "## #?## ## ]]#?? | | # #######???#" |"| "## #?# #?? | | # #?????????#""" """## ### [[#?? | | ####+#####????############### [[#?? | | ###+##### ########## #??## !!#?? | | % + #??# !!#?? | | % # = = #### #####?? | | + + #?????? | | ######%#"#"# ### #### #?????? | | #?####+##""" "## [ #??# ##+###?????? | +----------------------------------------------------+ Best States ------------- Heat Dissipation 25 Energy Generation 10 Energy Capacity 250 Matter Stores 300 Matter Capacity 300 Sight Range 18 Terrain Scan Density 10 Evasion (%) 50 Recoil Reduction 2 Item Schematics ----------------- None Robot Schematics ------------------ None Fabricated ------------ Nothing Repaired ---------- Nothing Studied --------- None Alien Tech Used ----------------- None Achievements -------------- Spot Them First Challenges ------------ None Game ------ Seed NavigationAlertMegatreads Manual? 0 Play Time 00:09:12 Cumulative 4.4 hours Start 2025.10.24 @ 20:30:10 End 2025.10.24 @ 20:39:11 Sessions 1 Manual Loads 0 Difficulty Rogue Special Mode None Game No. 10 Rogue 10 Adventurer 0 Explorer 0 Win Type - Total 0 Types 0/0/0/0/0/0/0/0/0/0 Lore% 2 Gallery% 5 Achievement% 7 Wizard Run 0 Options --------- Layout 1 ASCII 0 Keyboard 0 Movement Mouse Keybinds 0 Fullscreen 1 Font 32/SmallcapsGlow Map View 77x35 Zoom Use 0% Tactical HUD 1 Map Filters NONE Filters NONE Steam 1 RUN: fa0f4d0c-8f87-4086-ad3d-cd600acedbc8